bitfinex/quotes_SOLUSD_20260202
["timestamp","ask_amount","ask_price","bid_price","bid_amount"]
[1770026767026,0.1,103.2,103.18,4.11474607]
[1770026767216,4.36301223,103.19,103.15,7.73035006]
[1770026767618,4.36301223,103.19,103.16,4.11474607]
[1770026768910,7.85203813,103.2,103.16,4.11474607]
[1770026769110,4.23529333,103.2,103.16,7.73149087]
[1770026771523,4.23529333,103.2,103.17,4.48748809]
[1770026772033,0.1,103.2,103.17,4.48748809]
[1770026772232,0.1,103.2,103.18,8.10423289]
[1770026772429,0.1,103.2,103.18,4.48748809]
[1770026774043,0.1,103.2,103.14,4.77181123]
[1770026774252,0.1,103.2,103.18,4.48748809]
[1770026774942,0.1,103.2,103.18,8.10423289]
[1770026775143,0.1,103.2,103.19,4.48748809]
[1770026775355,0.1,103.2,103.18,8.10423289]
[1770026775851,0.1,103.21,103.19,4.48748809]
[1770026776835,4.23529333,103.21,103.18,8.10423289]
[1770026778361,0.1,103.21,103.18,8.10423289]
[1770026778659,4.23529333,103.21,103.18,8.10423289]
[1770026779631,0.1,103.21,103.19,4.48748809]
[1770026781438,0.1,103.21,103.16,8.10423289]
[1770026781439,4.13529333,103.2,103.16,8.10423289]
[1770026781649,4.13529333,103.2,103.16,3.6167448]
[1770026781840,4.13529333,103.2,103.17,4.48748809]
[1770026784153,4.13529333,103.2,103.17,8.10423289]
[1770026784557,0.1,103.21,103.19,4.48748809]
[1770026784866,4.23529333,103.21,103.18,8.10423289]
[1770026786559,4.23529333,103.21,103.18,3.6167448]
[1770026786962,0.1,103.21,103.18,3.6167448]
[1770026787160,4.23529333,103.21,103.18,8.10423289]
[1770026789469,4.23529333,103.21,103.18,4.48748809]
[1770026789759,4.23529333,103.21,103.17,8.10423289]
[1770026791055,4.13529333,103.2,103.16,3.6167448]
[1770026791860,0.1,103.21,103.18,4.48748809]
[1770026792180,0.1,103.21,103.17,8.10423289]
[1770026792181,4.13529333,103.2,103.17,8.10423289]
[1770026792845,4.23529333,103.21,103.18,4.48748809]
[1770026793548,4.23529333,103.21,103.18,8.10423289]
[1770026793952,4.23529333,103.21,103.19,3.6167448]
[1770026795047,6.63345477,103.22,103.2,3.6167448]
[1770026795258,0.1,103.24,103.21,8.10423289]
[1770026795563,0.1,103.24,103.22,5.28625039]
[1770026795768,4.13529333,103.25,103.23,3.6167448]
[1770026795949,4.13529333,103.27,103.23,5.28625039]
[1770026796143,4.13529333,103.27,103.24,3.6167448]
[1770026799172,7.75203813,103.27,103.22,5.28625039]
[1770026799371,4.38708256,103.26,103.22,5.28625039]
[1770026799541,26.94,103.28,103.24,1.66950559]
[1770026799542,4.38708256,103.28,103.24,1.66950559]
[1770026799849,4.38708256,103.28,103.24,5.28625039]
[1770026800047,4.38708256,103.28,103.25,5.28625039]
[1770026800466,4.38708256,103.28,103.21,0.28432314]
[1770026800467,6.886447,103.29,103.27,3.6167448]
[1770026800666,4.38708256,103.31,103.28,5.28625039]
[1770026800845,4.38708256,103.31,103.29,3.6167448]
[1770026802345,4.38708256,103.31,103.27,3.6167448]
[1770026803946,4.38708256,103.31,103.28,3.6167448]
[1770026805546,4.38708256,103.31,103.27,3.6167448]
[1770026806169,4.38708256,103.31,103.28,3.6167448]
[1770026807259,4.6,103.32,103.29,3.6167448]
[1770026807467,4.5,103.34,103.31,3.6167448]
[1770026807869,11.25102872,103.35,103.32,3.6167448]
[1770026808054,4.5,103.34,103.26,0.28432314]
[1770026808260,4.5,103.34,103.3,3.6167448]
[1770026809660,4.5,103.33,103.29,3.6167448]
[1770026810062,4.5,103.32,103.28,3.6167448]
[1770026810861,4.5,103.32,103.29,3.6167448]
[1770026811173,4.5,103.33,103.3,3.6167448]
[1770026812858,11.25102872,103.35,103.31,3.6167448]
[1770026813553,4.5,103.34,103.31,3.6167448]
[1770026817076,4.5,103.33,103.26,0.28432314]
[1770026817275,4.5,103.33,103.29,3.6167448]
[1770026817476,0.3186696,103.35,103.33,0.28432314]
[1770026817674,4.5,103.43,103.35,0.28432314]
[1770026817874,4.5,103.43,103.41,3.6167448]
[1770026818183,0.1,103.44,103.36,0.14216157]
[1770026818476,4.1,103.44,103.4,3.6167448]
[1770026818671,0.9679605,103.43,103.4,3.6167448]
[1770026818878,4.1,103.44,103.4,3.6167448]
[1770026819066,0.9679605,103.43,103.4,3.6167448]
[1770026819268,0.9679605,103.43,103.38,3.6167448]
[1770026819487,0.9679605,103.43,103.37,3.6167448]
[1770026819488,3.6167448,103.42,103.37,3.6167448]
[1770026819672,0.9679605,103.41,103.37,3.6167448]
[1770026819900,0.9679605,103.42,103.37,3.6167448]
[1770026820182,0.9679605,103.42,103.36,0.4]
[1770026820183,0.9679605,103.41,103.38,3.6167448]
[1770026820380,4.41216947,103.43,103.39,3.6167448]
[1770026820563,4.41216947,103.41,103.37,3.6167448]
[1770026820878,4.41216947,103.39,103.34,3.6167448]
[1770026821078,5.38012997,103.38,103.34,3.6167448]
[1770026821477,5.38012997,103.38,103.33,0.4]
[1770026821669,4.41216947,103.37,103.33,3.6167448]
[1770026821861,0.9679605,103.36,103.33,3.6167448]
[1770026822262,5.38012997,103.37,103.34,3.6167448]
[1770026822468,4.41216947,103.37,103.34,3.6167448]
[1770026824085,4.41216947,103.37,103.35,3.6167448]
[1770026824382,0.9679605,103.39,103.36,9.00294442]
[1770026824566,5.38012997,103.39,103.37,9.00294442]
[1770026824766,5.38012997,103.39,103.36,9.00294442]
[1770026825069,5.38012997,103.39,103.34,9.00294442]
[1770026825464,4.41216947,103.38,103.34,9.00294442]
[1770026825674,9.97090492,103.39,103.33,9.00294442]
[1770026825675,5.38012997,103.37,103.33,9.00294442]
[1770026825876,5.38012997,103.37,103.34,9.00294442]
[1770026826673,5.38012997,103.37,103.35,9.00294442]
[1770026827570,23.1,103.43,103.36,9.00294442]
[1770026827571,4.41216947,103.38,103.36,9.00294442]
[1770026828382,4.41216947,103.38,103.36,9.00478022]
[1770026829083,0.9679605,103.4,103.37,13.14500948]
[1770026829283,5.18517505,103.42,103.39,9.00478022]
[1770026829481,5.18517505,103.41,103.37,9.00478022]
[1770026829681,4.21721455,103.38,103.35,9.00478022]
[1770026829875,5.18517505,103.37,103.34,9.00478022]
[1770026832073,5.18517505,103.37,103.35,9.00478022]
[1770026834074,5.18517505,103.37,103.32,4.14022926]
[1770026834289,4.21721455,103.35,103.31,93.69298222]
[1770026834478,4.21721455,103.35,103.34,9.00478022]
[1770026834677,4.21721455,103.35,103.31,97.83321148]
[1770026834993,4.21721455,103.35,103.33,9.00478022]
[1770026836901,4.21721455,103.35,103.34,9.00478022]
[1770026838992,4.21721455,103.35,103.31,97.83321148]
[1770026839194,4.21721455,103.35,103.31,93.69298222]
[1770026839400,4.21721455,103.35,103.31,102.69776244]
[1770026839583,4.1750424,103.34,103.31,102.69776244]
[1770026840085,4.1750424,103.34,103.31,93.69298222]
[1770026840284,4.1750424,103.34,103.31,102.69776244]
[1770026841605,5.1430029,103.34,103.31,102.69776244]
[1770026841801,5.1430029,103.34,103.25,84.79319654]
[1770026841802,4.13329197,103.32,103.28,4.14022926]
[1770026841989,4.13329197,103.32,103.3,9.00478022]
[1770026843023,0.9679605,103.34,103.32,4.14022926]
[1770026843201,4.09195905,103.36,103.33,13.14500948]
[1770026843202,0.9679605,103.35,103.33,13.14500948]
[1770026843399,4.09195905,103.36,103.34,9.00478022]
[1770026843717,4.09195905,103.38,103.35,9.00478022]
[1770026845114,4.09195905,103.38,103.36,9.00478022]
[1770026845314,4.09195905,103.39,103.36,9.00478022]
[1770026846017,26.9,103.4,103.38,9.00478022]
[1770026846202,4.09195905,103.41,103.38,9.00478022]
[1770026846400,4.09195905,103.41,103.38,3.60054307]
[1770026847321,30.99195905,103.41,103.38,3.60054307]
[1770026847618,4.09195905,103.4,103.38,3.60054307]
[1770026847816,4.09195905,103.4,103.36,4.14022926]
[1770026847817,4.09195905,103.4,103.37,3.60054307]
[1770026848201,4.09195905,103.4,103.36,4.14022926]
[1770026848417,4.09195905,103.41,103.38,3.60054307]
[1770026848719,33.38989987,103.42,103.38,4.14022926]
[1770026848720,10.43969735,103.42,103.38,4.14022926]
[1770026848916,10.43969735,103.42,103.39,3.60054307]
[1770026849112,10.43969735,103.42,103.4,3.60054307]
[1770026851409,10.43969735,103.42,103.39,3.60054307]
[1770026851614,4.09195905,103.41,103.38,7.74077233]
[1770026852916,4.09195905,103.41,103.37,3.60054307]
[1770026853115,4.37628219,103.4,103.37,3.60054307]
[1770026853516,4.37628219,103.4,103.36,7.74077233]
[1770026854425,4.09195905,103.39,103.35,9.00487468]
[1770026855131,4.09195905,103.38,103.34,9.00487468]
[1770026855424,4.09195905,103.4,103.36,9.00487468]
[1770026855625,15.35261298,103.42,103.38,9.00487468]
[1770026855626,30.99195905,103.41,103.38,9.00487468]
[1770026856432,4.09195905,103.4,103.38,9.00487468]
[1770026857011,6.48989987,103.42,103.39,9.00487468]
[1770026857012,10.43969735,103.42,103.39,9.00487468]
[1770026857415,6.3477383,103.42,103.4,13.14510394]
[1770026857622,6.3477383,103.42,103.41,9.00487468]
[1770026858131,4.09195905,103.45,103.41,4.14893444]
[1770026858331,4.09195905,103.45,103.42,9.00487468]
[1770026858525,4.09195905,103.45,103.42,13.15380912]
[1770026858732,30.99195905,103.46,103.43,9.00487468]
[1770026860312,14.05996674,103.53,103.46,4.14893444]
[1770026860313,9.21726879,103.52,103.46,4.14893444]
[1770026860535,9.21726879,103.52,103.49,9.00487468]
[1770026860747,4.15749109,103.52,103.49,9.00487468]
[1770026860951,7.95750109,103.51,103.47,11.90687468]
[1770026861318,7.95750109,103.51,103.47,16.05580912]
[1770026861642,7.95750109,103.51,103.48,9.00487468]
[1770026861840,4.15749109,103.5,103.47,2.902]
[1770026862014,4.15749109,103.5,103.47,0.60755831]
[1770026862427,4.15749109,103.48,103.44,9.00487468]
[1770026862629,4.15749109,103.48,103.43,9.00487468]
[1770026863224,4.15749109,103.47,103.43,9.00487468]
[1770026863653,4.15749109,103.47,103.43,13.15380912]
[1770026864321,4.15749109,103.47,103.44,9.00487468]
[1770026864738,13.16236577,103.49,103.44,13.15380912]
[1770026864930,4.15749109,103.49,103.44,13.15380912]
[1770026865632,4.15749109,103.49,103.45,9.00487468]
[1770026865943,4.15749109,103.49,103.44,13.15380912]
[1770026866129,13.16236577,103.48,103.43,13.15380912]
[1770026866644,13.16236577,103.48,103.39,9.00487468]
[1770026866645,13.16236577,103.46,103.41,9.00487468]
[1770026866835,4.15749109,103.45,103.41,9.00487468]
[1770026867142,13.16236577,103.43,103.38,13.15380912]
[1770026867346,4.15749109,103.42,103.38,13.15380912]
[1770026867552,4.15749109,103.41,103.36,13.15380912]
[1770026867844,13.16236577,103.4,103.35,13.15380912]
[1770026868440,4.47012636,103.39,103.35,13.15380912]
[1770026868949,4.47012636,103.39,103.34,9.00487468]
[1770026869542,4.47012636,103.38,103.34,9.00487468]
[1770026870252,4.47012636,103.36,103.33,27.85927994]
[1770026870423,35.88487468,103.38,103.33,36.86415462]
[1770026870625,4.47012636,103.37,103.34,9.00487468]
[1770026871329,4.47012636,103.37,103.33,27.85927994]
[1770026872132,4.47012636,103.37,103.33,41.27184546]
[1770026872447,31.6344495,103.39,103.35,9.00487468]
[1770026872646,4.47012636,103.38,103.35,9.00487468]
[1770026873453,26.88,103.39,103.37,9.00487468]
[1770026873628,26.88,103.39,103.36,9.00487468]
[1770026874030,31.35012636,103.39,103.36,9.00487468]
[1770026874253,4.47012636,103.41,103.37,13.41256552]
[1770026874552,4.47012636,103.41,103.38,9.00487468]
[1770026877343,4.7544495,103.43,103.39,9.00487468]
[1770026878540,4.7544495,103.43,103.38,13.41256552]
[1770026878940,4.47012636,103.42,103.38,9.00487468]
[1770026879756,4.47012636,103.42,103.39,9.00487468]
[1770026880337,4.47012636,103.4,103.33,27.85927994]
[1770026880558,4.47012636,103.4,103.36,9.00487468]
[1770026880758,4.47012636,103.4,103.35,13.41256552]
[1770026881271,4.47012636,103.4,103.33,94.06697078]
[1770026881272,4.47012636,103.39,103.33,94.06697078]
[1770026881437,4.47012636,103.39,103.36,9.00487468]
[1770026881638,4.47012636,103.39,103.37,9.00487468]
[1770026881936,4.47012636,103.41,103.38,9.00487468]
[1770026882141,4.47012636,103.41,103.35,4.40769084]
[1770026882343,4.47012636,103.41,103.38,9.00487468]
[1770026882662,4.47012636,103.43,103.4,9.00487468]
[1770026882859,4.47012636,103.43,103.39,9.00487468]
[1770026883159,4.47012636,103.43,103.4,9.00487468]
[1770026883361,4.47012636,103.43,103.39,9.00487468]
[1770026884060,4.47012636,103.43,103.38,4.40769084]
[1770026884546,4.47012636,103.42,103.38,13.41256552]
[1770026884746,4.47012636,103.42,103.39,9.00487468]
[1770026886963,4.47012636,103.42,103.38,13.41256552]
[1770026887560,4.47012636,103.41,103.36,13.41256552]
[1770026887763,4.07380908,103.43,103.39,13.45448871]
[1770026888174,30.95380908,103.45,103.41,9.00487468]
[1770026888477,4.07380908,103.44,103.38,4.44961403]
[1770026888683,4.07380908,103.44,103.4,8.99638754]
[1770026890150,30.95380908,103.45,103.41,13.44600157]
[1770026890384,4.07380908,103.44,103.41,8.99638754]
[1770026890551,4.07380908,103.44,103.4,13.44600157]
[1770026895183,4.07380908,103.44,103.41,4.44961403]
[1770026895999,4.07380908,103.44,103.4,13.44600157]
[1770026899079,4.07380908,103.44,103.35,4.44961403]
[1770026899287,4.07380908,103.41,103.35,4.44961403]
[1770026899494,4.07380908,103.41,103.37,13.44600157]
[1770026899866,4.07380908,103.41,103.38,4.44961403]
[1770026900175,201.81854911,103.46,103.38,13.44600157]
[1770026900176,13.07019662,103.43,103.38,13.44600157]
[1770026900377,4.07380908,103.42,103.38,13.44600157]
[1770026900582,4.07380908,103.42,103.38,4.44961403]
[1770026902286,4.07380908,103.41,103.38,4.44961403]
[1770026902590,4.07380908,103.4,103.36,13.44600157]
[1770026905083,4.07380908,103.39,103.35,75.24600157]
[1770026905294,4.07380908,103.39,103.35,13.44600157]
[1770026905663,4.07380908,103.39,103.36,13.44600157]
[1770026910094,4.07380908,103.39,103.36,4.44961403]
[1770026910299,4.07380908,103.39,103.36,13.44600157]
[1770026911198,4.07380908,103.38,103.34,13.44600157]
[1770026911574,4.07380908,103.37,103.33,36.85566748]
[1770026912371,4.07380908,103.37,103.33,31.46309019]
[1770026912672,4.07380908,103.37,103.33,8.05342428]
[1770026913273,4.07380908,103.37,103.32,8.05342428]
[1770026913885,4.07380908,103.36,103.32,3.60381025]
[1770026914610,4.07380908,103.36,103.32,8.05342428]
[1770026914887,4.07380908,103.36,103.32,3.60381025]
[1770026915097,4.07380908,103.36,103.31,4.44961403]
[1770026915268,4.07380908,103.35,103.31,3.60381025]
[1770026915473,4.07380908,103.35,103.31,8.05342428]
[1770026915675,4.07380908,103.35,103.32,3.60381025]
[1770026915898,26.88,103.37,103.34,8.05342428]
[1770026916194,4.07380908,103.41,103.36,8.05342428]
[1770026916379,4.07380908,103.41,103.36,13.45270586]
[1770026916701,4.07380908,103.41,103.36,4.44961403]
[1770026916902,4.07380908,103.39,103.34,13.45270586]
[1770026917197,4.07380908,103.37,103.32,13.45270586]
[1770026917380,4.07380908,103.37,103.33,4.44961403]
[1770026917699,4.07380908,103.37,103.33,13.45270586]
[1770026917994,4.07380908,103.37,103.32,13.34760748]
[1770026918301,4.07380908,103.37,103.28,26.9]
[1770026918302,4.07380908,103.37,103.35,9.00309183]
[1770026918496,4.07380908,103.37,103.34,13.34760748]
[1770026921379,4.48287631,103.39,103.35,13.34760748]
[1770026921585,4.48287631,103.39,103.36,13.34760748]
[1770026922488,4.48287631,103.41,103.38,4.34451565]
[1770026922695,4.48287631,103.41,103.38,13.34760748]
[1770026923283,4.48287631,103.42,103.38,13.34760748]
[1770026927419,165.8,103.46,103.4,13.34760748]
[1770026927704,4.48287631,103.44,103.41,9.00309183]
[1770026928086,4.48287631,103.44,103.4,13.34760748]
[1770026929408,4.48287631,103.44,103.39,13.45471116]
[1770026929608,4.48287631,103.44,103.4,9.00309183]
[1770026930008,4.48287631,103.44,103.39,4.45161933]
[1770026930207,4.48287631,103.44,103.4,9.00309183]
[1770026930795,4.49617993,103.42,103.34,4.45161933]
[1770026930988,4.49617993,103.42,103.38,9.00309183]
[1770026931188,4.49617993,103.42,103.38,13.45471116]
[1770026931907,13.49927176,103.42,103.37,9.00309183]
[1770026932118,18.84432314,103.43,103.35,9.00309183]
[1770026932119,4.49617993,103.39,103.35,9.00309183]
[1770026932414,4.49617993,103.39,103.33,13.45471116]
[1770026932415,4.49617993,103.38,103.33,13.45471116]
[1770026932622,9.00309183,103.38,103.33,13.45471116]
[1770026932794,4.49617993,103.37,103.34,13.45471116]
[1770026932997,4.49617993,103.38,103.34,13.45471116]
[1770026933510,4.49617993,103.38,103.33,13.45471116]
[1770026933717,4.49617993,103.37,103.33,13.45471116]
[1770026935195,4.49617993,103.37,103.32,9.00309183]
[1770026935396,4.49617993,103.36,103.32,9.00309183]
[1770026935597,4.49617993,103.35,103.31,4.45161933]
[1770026936204,4.49617993,103.33,103.29,13.45471116]
[1770026936404,4.6383415,103.34,103.31,9.00309183]
[1770026937212,4.6383415,103.34,103.3,4.45161933]
[1770026937410,4.6383415,103.34,103.29,13.45471116]
[1770026937611,4.6383415,103.34,103.3,9.00309183]
[1770026938009,4.6383415,103.34,103.31,9.00309183]
[1770026938498,0.14216157,103.35,103.32,13.45471116]
[1770026938695,4.6383415,103.35,103.33,9.00309183]
[1770026938897,4.6383415,103.35,103.32,9.00309183]
[1770026939400,4.49617993,103.38,103.33,9.00309183]
[1770026939600,4.49617993,103.37,103.33,9.00309183]
[1770026941228,26.91617993,103.38,103.35,13.45471116]
[1770026941516,4.49617993,103.38,103.35,13.45471116]
[1770026942800,4.49617993,103.38,103.34,9.00309183]
[1770026943001,4.49617993,103.38,103.34,13.45471116]
[1770026944405,4.78050307,103.39,103.35,13.45471116]
[1770026944612,4.73554127,103.36,103.3,4.45161933]
[1770026944808,4.73554127,103.36,103.32,13.45471116]
[1770026946217,0.28432314,103.37,103.34,13.45471116]
[1770026947023,0.28432314,103.37,103.27,78.64927928]
[1770026947024,31.35121813,103.39,103.35,13.45471116]
[1770026949813,26.9,103.39,103.37,4.45169388]
[1770026950216,4.33658771,103.41,103.37,4.45169388]
[1770026950418,0.28432314,103.4,103.37,13.45463319]
[1770026950615,4.33658771,103.4,103.37,13.45463319]
[1770026951304,4.33658771,103.4,103.36,13.45463319]
[1770026952610,0.28432314,103.37,103.33,4.45169388]
[1770026952815,0.28432314,103.37,103.33,13.45463319]
[1770026952816,4.29322183,103.37,103.33,13.45463319]
[1770026953028,4.29322183,103.36,103.32,13.45463319]
[1770026954512,31.19322183,103.36,103.32,13.45463319]
[1770026955234,31.19322183,103.36,103.32,4.45169388]
[1770026955438,4.29322183,103.35,103.3,13.45463319]
[1770026955631,4.29322183,103.35,103.3,4.45169388]
[1770026955936,4.29322183,103.35,103.32,13.45463319]
[1770026956145,31.19322183,103.36,103.32,13.45463319]
[1770026956516,4.29322183,103.36,103.32,13.45463319]
[1770026957716,4.29322183,103.36,103.32,4.45169388]
[1770026957916,31.19322183,103.36,103.32,13.45463319]
[1770026958330,4.29322183,103.36,103.32,13.45463319]
[1770026958753,31.3353834,103.37,103.33,13.45463319]
[1770026959525,4.29322183,103.36,103.32,13.45463319]
[1770026959731,4.29322183,103.36,103.32,4.45169388]
[1770026960644,4.29322183,103.34,103.29,13.45463319]
[1770026961019,4.29322183,103.34,103.3,13.45463319]
[1770026961224,4.29322183,103.34,103.31,13.45463319]
[1770026961424,31.19322183,103.35,103.32,9.00293931]
[1770026961624,4.29322183,103.35,103.32,9.00293931]
[1770026962019,4.29322183,103.35,103.31,4.45169388]
[1770026962020,4.29322183,103.35,103.31,13.45463319]
[1770026962525,4.29322183,103.35,103.28,4.45169388]
[1770026962839,4.29322183,103.35,103.32,13.45463319]
[1770026963042,4.29322183,103.35,103.31,13.45463319]
[1770026963221,4.29322183,103.35,103.31,4.45169388]
[1770026963422,4.29322183,103.35,103.31,13.45463319]
[1770026965139,4.29322183,103.35,103.31,4.45169388]
[1770026965319,4.29322183,103.35,103.31,13.45463319]
[1770026966347,31.19322183,103.35,103.31,13.45463319]
[1770026966642,4.29322183,103.35,103.31,13.45463319]
[1770026968042,4.29322183,103.35,103.29,4.45169388]
[1770026968241,26.9,103.36,103.27,7.1661649]
[1770026968242,4.29322183,103.33,103.28,13.45463319]
[1770026968548,4.29322183,103.32,103.28,13.45463319]
[1770026968928,4.29322183,103.32,103.29,9.00293931]
[1770026969127,4.29322183,103.32,103.29,13.45463319]
[1770026969537,4.29322183,103.32,103.29,4.45169388]
[1770026969930,4.29322183,103.32,103.29,13.45463319]
[1770026970352,31.19322183,103.34,103.3,13.45463319]
[1770026970652,4.29322183,103.36,103.32,13.45463319]
[1770026970841,4.29322183,103.36,103.33,9.00293931]
[1770026971230,31.19322183,103.37,103.34,13.45463319]
[1770026972152,31.19322183,103.37,103.27,7.1661649]
[1770026972153,31.19322183,103.37,103.33,13.45463319]
[1770026972353,4.29322183,103.36,103.33,4.45169388]
[1770026972536,4.29322183,103.36,103.32,13.45463319]
[1770026973132,4.29322183,103.36,103.33,9.00293931]
[1770026973332,4.29322183,103.36,103.32,13.45463319]
[1770026974530,0.28432314,103.35,103.32,13.45463319]
[1770026975755,4.57754497,103.35,103.32,13.45463319]
[1770026975936,4.57754497,103.35,103.27,68.9661649]
[1770026975937,0.28432314,103.34,103.31,13.45463319]
[1770026976143,0.28432314,103.34,103.32,4.45169388]
[1770026978754,4.24578315,103.36,103.33,4.13757504]
[1770026979258,4.24578315,103.38,103.34,4.13757504]
[1770026979456,4.24578315,103.37,103.32,4.13757504]
[1770026979757,4.24578315,103.37,103.32,13.14051435]
[1770026980147,4.24578315,103.37,103.33,4.13757504]
[1770026980337,4.24578315,103.37,103.33,13.14051435]
[1770026980531,4.24578315,103.37,103.32,13.14051435]
[1770026980733,4.24578315,103.37,103.33,4.13757504]
[1770026981039,31.14578315,103.37,103.33,4.13757504]
[1770026982054,4.53010629,103.36,103.32,4.13757504]
[1770026982251,4.53010629,103.36,103.32,13.14051435]
[1770026982956,4.53010629,103.36,103.33,4.13757504]
[1770026985559,0.28432314,103.36,103.33,4.13757504]
[1770026987573,13.24872246,103.39,103.34,4.13757504]
[1770026987866,4.24578315,103.38,103.34,4.13757504]
[1770026989954,13.24872246,103.38,103.34,4.13757504]
[1770026990167,35.90293931,103.38,103.34,4.13757504]
[1770026990461,4.11316395,103.37,103.34,4.13757504]
[1770026991162,0.28432314,103.36,103.34,4.13757504]
[1770026991367,0.28432314,103.36,103.33,4.16750634]
[1770026991770,4.11316395,103.35,103.32,4.16750634]
[1770026992149,4.39748709,103.36,103.32,4.16750634]
[1770026993754,0.28432314,103.34,103.32,4.16750634]
[1770026994556,4.39748709,103.34,103.3,4.16750634]
[1770026994966,4.39748709,103.34,103.31,4.16750634]
[1770026996282,10.336912,103.37,103.33,4.16750634]
[1770026996451,4.11316395,103.36,103.32,4.16750634]
[1770026997469,31.01316395,103.36,103.32,4.16750634]
[1770026997665,4.11316395,103.34,103.29,3.60458765]
[1770026997970,4.11316395,103.34,103.3,4.16750634]
[1770026998474,34.6177516,103.35,103.31,4.16750634]
[1770026998658,6.22374805,103.37,103.34,7.77209399]
[1770026998862,6.22374805,103.37,103.32,3.60458765]
[1770026999044,6.22374805,103.37,103.32,4.16750634]
[1770026999357,4.11316395,103.35,103.31,4.16750634]
[1770027001275,4.39748709,103.35,103.31,7.77209399]
[1770027001461,4.11316395,103.34,103.3,4.16750634]
[1770027001657,4.11316395,103.32,103.28,4.16750634]
[1770027001972,4.11316395,103.32,103.28,7.77209399]
[1770027002173,4.11316395,103.32,103.29,4.16750634]
[1770027002874,4.11316395,103.32,103.29,7.77209399]
[1770027003079,4.11316395,103.32,103.27,4.16750634]
[1770027003248,4.11316395,103.32,103.28,7.77209399]
[1770027003451,31.01316395,103.33,103.3,7.77209399]
[1770027003653,4.11316395,103.35,103.32,3.60458765]
[1770027004054,4.11316395,103.35,103.32,7.77209399]
[1770027004476,4.11316395,103.36,103.33,3.60458765]
[1770027004666,6.22374805,103.37,103.35,3.60458765]
[1770027005475,10.336912,103.37,103.35,3.60458765]
[1770027006172,6.22374805,103.37,103.35,3.60458765]
[1770027006382,6.22374805,103.37,103.35,7.77209399]
[1770027006963,4.39748709,103.36,103.32,7.77209399]
[1770027007161,4.39748709,103.36,103.32,4.16750634]
[1770027007963,4.39748709,103.36,103.33,7.92577445]
[1770027007964,4.11316395,103.36,103.33,7.92577445]
[1770027008270,3.12231606,103.36,103.33,7.92577445]
[1770027008480,3.12231606,103.36,103.32,7.92577445]
[1770027008672,3.12231606,103.36,103.32,4.3211868]
[1770027009354,3.60458765,103.36,103.3,7.92577445]
[1770027009561,22.98458765,103.35,103.3,4.3211868]
[1770027010062,4.4061188,103.34,103.3,4.3211868]
[1770027010986,4.4061188,103.34,103.29,7.92577445]
[1770027011169,4.4061188,103.34,103.3,4.3211868]
[1770027011364,4.4061188,103.34,103.3,7.92577445]
[1770027011678,4.4061188,103.35,103.31,7.92577445]
[1770027012381,4.4061188,103.35,103.31,7.92592104]
[1770027012586,35.58138965,103.36,103.33,4.3211868]
[1770027012757,31.3061188,103.36,103.33,4.3211868]
[1770027012961,4.4061188,103.36,103.33,4.3211868]
[1770027013584,4.4061188,103.36,103.32,7.92592104]
[1770027013804,4.4061188,103.36,103.32,4.3211868]
[1770027015191,4.69044194,103.35,103.3,13.33277578]
[1770027015497,4.4061188,103.34,103.3,4.3211868]
[1770027015706,31.59044194,103.35,103.31,4.3211868]
[1770027016072,31.3061188,103.35,103.32,4.3211868]
[1770027017180,31.3061188,103.35,103.31,4.3211868]
[1770027017497,31.3061188,103.35,103.31,13.33277578]
[1770027019078,26.9,103.35,103.32,4.3211868]
[1770027021286,7.07836057,103.36,103.32,4.3211868]
[1770027023404,4.4061188,103.35,103.31,13.33277578]
[1770027023604,4.4061188,103.35,103.31,4.3211868]
[1770027024299,8.96571279,103.36,103.31,4.3211868]
[1770027024480,8.96571279,103.36,103.31,13.33277578]
[1770027024680,8.96571279,103.36,103.32,4.3211868]
[1770027024889,4.4061188,103.35,103.32,4.3211868]
[1770027028603,31.17527085,103.36,103.32,4.3211868]
[1770027028907,31.17527085,103.36,103.33,4.3211868]
[1770027029084,35.58138965,103.36,103.33,4.3211868]
[1770027029284,35.58138965,103.36,103.32,13.33277578]
[1770027029928,6.22374805,103.37,103.33,4.3211868]
[1770027030206,6.22374805,103.37,103.35,4.3211868]
[1770027030404,6.22374805,103.37,103.36,4.3211868]
[1770027030604,4.4061188,103.4,103.36,13.33277578]
[1770027031900,4.4061188,103.4,103.36,4.3211868]
[1770027032097,4.4061188,103.39,103.36,4.3211868]
[1770027033108,4.4061188,103.39,103.35,4.3211868]
[1770027033822,4.69044194,103.38,103.33,13.33277578]
[1770027033993,31.59044194,103.38,103.34,4.3211868]
[1770027034195,4.4061188,103.37,103.34,4.3211868]
[1770027038521,34.72727232,103.35,103.31,4.44370197]
[1770027039405,31.12379947,103.35,103.31,8.04717482]
[1770027039616,26.9,103.35,103.33,4.44370197]
[1770027040198,4.22379947,103.36,103.33,4.44370197]
[1770027040614,35.39907032,103.37,103.33,8.04717482]
[1770027040815,8.49907032,103.37,103.34,4.44370197]
[1770027041009,8.49907032,103.37,103.33,8.04717482]
[1770027042315,8.49907032,103.37,103.34,4.44370197]
[1770027044123,31.12379947,103.38,103.34,8.04717482]
[1770027044316,8.49907032,103.38,103.34,4.44370197]